Cogmind - Beta 16 @@@ ROGUE MODE // 2025.12.14 @ 21:02:13 Player: unq Result: Self-destructed Performance ------------- Evolutions (6) 3000 Regions Visited (23) 4600 Robots Destroyed (351) 1755 Value Destroyed (14313) 14313 Prototype IDs (54) 1080 Alien Tech Used (0) 0 Bonus (7536) 7536 TOTAL SCORE: 32284 Bonus ------- High Alert Combat Kills 1126 Follower Combat Kills 2819 Entered Garrisons 600 Aligned with FarCom 300 Acquired ECA 300 Met Warlord at Base 500 MAIN.C Attacked Warlord 500 Warlord Defense Kills 808 Built Enhanced Grunts 300 A7 Reached Mainframe 300 Met R17 at Cetus 500 Friendly Fire -517 Cogmind --------- Core Integrity 907/1150 Matter 296/300 Energy 64/150 System Corruption 0% Temperature Cool (6) Movement Flying (120) Ox1 Location -4/Hub_04(d) Parts ------- > --- POWER (2) -------- Light Angular Momentum Engine > --- PROPULSION (7) --- Field Propulsion Array > --- UTILITY (6) ------ Advanced Heat Sink Large Storage Unit Gravity Neutralizer Enhanced Optical Array Advanced Targeting Computer Core Analyzer > --- WEAPON (4) ------- Vortex Lance > --- INVENTORY (15) --- Improved Surge Thruster Improved Surge Thruster Improved Weapon Cycler Advanced Reaction Control System Improved Point Defense System Improved System Shield Authchip [Propulsion] Vortex Rifle (20) Nova Cannon Advanced KE Penetrator Advanced KE Penetrator Advanced KE Penetrator Vortex Lance (22) Peak State ------------ > --- POWER ------------ Micro Fission Core Micro Fission Core > --- PROPULSION ------- Improved VTOL Module Improved VTOL Module Improved Cesium-ion Thruster Field Propulsion Array Impulse Thruster Array > --- UTILITY ---------- Advanced Heat Sink Large Storage Unit Gravity Neutralizer Advanced Targeting Computer Core Analyzer Advanced Hacking Suite > --- WEAPON ----------- Nova Cannon KE Penetrator KE Penetrator Vortex Lance > --- INVENTORY -------- Enhanced Nuclear Core Micro Fission Core Improved VTOL Module Impulse Thruster Enhanced Optical Array Improved Weapon Cycler Advanced Reaction Control System Improved Medium Armor Plating Improved Point Defense System Authchip [Propulsion] Mini Drone Bay Vortex Rifle Vortex Rifle KE Penetrator Vortex Lance [Rating: 118] Favorites ----------- Power Micro Fission Core Engine Cooled Ion Engine Power Core Micro Fission Core Propulsion Improved VTOL Module Treads Advanced Treads Leg Potential Leg Hover Unit Hover Unit Flight Unit Improved VTOL Module Utility Large Storage Unit Device Improved Heat Sink Storage Large Storage Unit Processor Core Analyzer Hackware Advanced Hacking Suite Protection Hardened Medium Armor Plating Weapon Advanced Beam Rifle Energy Gun Advanced Beam Rifle Energy Cannon Beam Cannon Ballistic Gun Heavy Machine Gun Ballistic Cannon Advanced Assault Cannon Launcher Improved Grenade Launcher Special Weapon Mining Laser Impact Weapon Makeshift Hammer Piercing Weapon Vortex Lance Build | -11 -10 -10 -9 -9 -9 -8 -8 -8 -8 -8 -7 -7 -7 -7 -5 -5 -5 -4 -4 -4 -4 -4 -4 ------- Run | Yrd Mat Min Mat Min Exi Min Mat Gar Mat Gar Fac Sto Gar Rec Fac Upp War Pro Fac Ext Cet Arc Hub Slots Evolved 12 | . . . 2 . . . 2 . . . 2 . . . 4 . . . 2 . . . . Power 1 | . . . . . . . . . . . . . . . 1 . . . . . . . . Propulsion 5 | . . . . . . . . . . . 1 . . . 3 . . . 1 . . . . Utility 4 | . . . . . . . 2 . . . 1 . . . . . . . 1 . . . . Weapon 2 | . . . 2 . . . . . . . . . . . . . . . . . . . . Parts Attached 225 | 7 12 . 30 . 4 . 4 12 10 10 21 24 6 2 15 . 11 . 13 23 4 5 12 Power 18 | 1 1 . 3 . . . . 1 . 4 . 4 . . . . 1 . 2 . . . 1 Engine 12 | 1 1 . 3 . . . . 1 . 4 . 1 . . . . . . . . . . 1 Core 6 | . . . . . . . . . . . . 3 . . . . 1 . 2 . . . . Reactor . | . . . . . . . . . . . . . . . . . . . . . . . . Propulsion 57 | 2 3 . 13 . 2 . . . . . 8 6 . . 4 . . . 3 4 1 1 10 Treads 23 | . 3 . 12 . . . . . . . 4 4 . . . . . . . . . . . Leg 15 | 2 . . . . 2 . . . . . 4 . . . . . . . . . . . 7 Wheel . | . . . . . . . . . . . . . . . . . . . . . . . . Hover 1 | . . . 1 . . . . . . . . . . . . . . . . . . . . Flight 18 | . . . . . . . . . . . . 2 . . 4 . . . 3 4 1 1 3 Utility 69 | 2 4 . 3 . 2 . 2 5 2 2 9 3 4 . 6 . 3 . 7 9 1 4 1 Device 40 | 1 2 . 1 . 1 . . 3 1 2 6 2 3 . 4 . 2 . 2 6 1 3 . Storage 9 | 1 2 . 1 . 1 . . . 1 . 1 . . . 1 . . . 1 . . . . Processor 7 | . . . . . . . 1 2 . . . . . . 1 . 1 . . 2 . . . Hackware 6 | . . . . . . . . . . . . . . . . . . . 3 1 . 1 1 Protection 7 | . . . 1 . . . 1 . . . 2 1 1 . . . . . 1 . . . . Artifact . | . . . . . . . . . . . . . . . . . . . . . . . . Weapon 81 | 2 4 . 11 . . . 2 6 8 4 4 11 2 2 5 . 7 . 1 10 2 . . Energy Gun 23 | 2 . . 3 . . . . 2 1 1 1 7 1 . 1 . 2 . . 2 . . . Energy Cannon 3 | . 1 . . . . . . . . . . . . . . . 1 . 1 . . . . Ballistic Gun 44 | . 2 . 7 . . . 2 3 6 3 1 2 1 2 4 . 1 . . 8 2 . . Ballistic Cannon 2 | . . . . . . . . . . . 2 . . . . . . . . . . . . Launcher 4 | . . . . . . . . 1 1 . . 2 . . . . . . . . . . . Special Weapon 2 | . 1 . . . . . . . . . . . . . . . 1 . . . . . . Impact Weapon 1 | . . . 1 . . . . . . . . . . . . . . . . . . . . Slashing Weapon . | . . . . . . . . . . . . . . . . . . . . . . . . Piercing Weapon 2 | . . . . . . . . . . . . . . . . . 2 . . . . . . Special Melee Weapon . | . . . . . . . . . . . . . . . . . . . . . . . . Unidentified Prototypes 19 | . . . 1 . . . . . . . 2 11 . . . . 4 . . . 1 . . Corrupted Parts 1 | . . . . . . . . . . . . . . . . . . . . . . 1 . System Corruption 3 | . . . . . . . . . . . . . . . . . . . . . . 3 . Parts Lost 33 | . . . . . . . . 2 1 4 2 3 2 . . . . . 2 4 1 . 12 Power 5 | . . . . . . . . . . 2 . 1 . . . . . . . . . . 2 Propulsion 10 | . . . . . . . . . . . . . . . . . . . 1 2 1 . 6 Utility 6 | . . . . . . . . 1 . 1 1 . 2 . . . . . . 1 . . . Weapon 12 | . . . . . . . . 1 1 1 1 2 . . . . . . 1 1 . . 4 Highest Loss Streak 9 | . . . . . . . . 2 1 1 1 1 1 . . . . . 1 2 1 . 9 To Critical Strikes . | . . . . . . . . . . . . . . . . . . . . . . . . Average Backups 13 | 2 9 13 14 14 15 15 14 14 14 14 14 14 15 15 9 10 9 10 11 14 13 15 14 Power . | . . 1 1 1 1 1 1 1 1 . 1 1 1 1 . 1 1 1 1 1 1 1 . Propulsion 5 | 1 2 3 5 6 6 6 7 8 8 8 6 7 8 8 . . . . 1 1 1 1 . Utility 2 | . 1 1 3 1 2 2 . . 1 . . 1 2 2 4 6 5 5 5 6 4 5 5 Weapon 5 | 1 5 7 4 6 6 6 6 5 4 5 6 4 4 4 3 3 3 4 3 5 6 7 7 Tool/Special . | . . . . . . . . . . . . . . . . . . . . . . . . Unused Backups 47 | . 2 . 10 . . . 4 1 . . 5 8 . . 4 . 1 . 3 1 . . 8 Power 4 | . . . 1 . . . . . . . 1 1 . . 1 . . . . . . . . Propulsion 16 | . . . 1 . . . 3 1 . . 2 5 . . . . . . . 1 . . 3 Utility 15 | . 1 . 2 . . . . . . . 1 1 . . 3 . 1 . 3 . . . 3 Weapon 11 | . 1 . 5 . . . 1 . . . 1 1 . . . . . . . . . . 2 Tool/Special 1 | . . . 1 . . . . . . . . . . . . . . . . . . . . Average Slot Usage (%) 98 | . 99 100 99 100 99 98 99 99 99 99 98 99 99 100 98 100 96 100 90 90 99 100 90 Engine 6 | . 14 14 11 11 11 11 9 9 9 8 7 4 . . . . . . . . . . 1 Core 3 | . . . . . . . . . . . . 2 7 7 11 11 11 11 10 10 10 10 8 Treads 10 | . 21 28 22 22 10 . . . . . 6 22 23 23 1 . . . . . . . . Leg 6 | . 6 . . . 11 22 18 18 18 18 16 . . . . . . . . . . . 12 Flight 7 | . . . . . . . . . . . . . . . 32 35 35 35 27 28 36 36 16 Device 11 | . 13 14 8 11 11 9 10 9 9 14 15 16 13 15 12 11 10 11 11 8 10 10 7 Storage 8 | . 14 14 11 11 11 11 9 9 9 9 7 7 7 7 3 5 5 5 5 5 5 5 5 Processor 7 | . . . . . . . 8 13 18 12 7 7 7 7 10 11 11 11 10 13 15 15 15 Protection 2 | . . . 2 . . . 7 4 . . 5 5 7 7 . . . . . . . . . Energy Gun 8 | . 8 . 18 22 22 22 9 9 9 10 7 11 11 8 . . 2 . . . . . . Energy Cannon 1 | . 10 14 2 . . . . . . . . . . . . . . . . . . . . Ballistic Gun 18 | . 5 13 19 21 22 22 23 23 25 21 22 16 14 21 17 17 12 17 14 14 14 15 15 Impact Weapon 1 | . . . 3 . . . 2 2 1 3 . 2 3 . 3 5 3 . . . . . . Peak Build Rating 118 | 7 10 10 26 27 50 44 51 50 51 56 64 54 53 52 83 81 89 89 118 111 92 92 113 Average Rating 51 | 5 8 9 19 24 35 42 49 48 48 53 54 49 51 51 77 81 80 89 109 97 89 91 104 On Entrance 54 | . 7 8 10 26 26 44 42 50 50 51 55 50 52 52 51 81 81 89 89 110 88 92 92 Avg Prop Armor Cover (%) 6 | . . . . . . . . . . . 5 11 . . . . 7 . . 9 . . 9 Naked Turns . | . . . . . . . . . . . . . . . . . . . . . . . . Heaviest Build 67 | 13 28 30 40 39 39 39 48 49 40 48 67 66 53 53 58 43 43 43 57 49 47 48 55 Greatest Support 120 | 20 40 40 40 40 60 60 60 60 60 60 78 66 66 66 66 43 43 45 59 59 47 47 120 Greatest Overweight (x) 17 | . . . . . 1 . . . . . 4 17 . . . . 2 . 1 3 . 1 1 Average Overweight (x) . | . . . . . . . . . . . . . . . . . . . . . . . . Largest Inventory Capacity 15 | 8 15 15 15 15 15 15 15 15 15 15 15 15 15 15 15 10 10 10 15 15 15 15 15 Average Capacity 14 | 7 10 15 15 15 15 15 15 15 15 15 15 15 15 15 9 10 10 10 12 15 15 15 15 Most Carried 15 | 4 13 14 15 15 15 15 15 15 15 15 15 15 15 15 14 10 10 10 15 15 15 15 15 Average Carried 13 | 2 9 13 14 14 15 15 14 14 14 14 14 14 14 15 9 10 9 10 11 14 13 14 14 Final Capacity 15 | 8 15 15 15 15 15 15 15 15 15 15 15 15 15 15 10 10 10 10 15 15 15 15 15 Final Carried 15 | 4 13 14 15 15 15 15 15 15 15 15 14 15 15 15 10 10 10 10 15 14 15 15 13 Class Distribution -------------------- 43% | Gunner 11% | Mutant 9% | Sprinter 9% | Skirmisher 7% | Scavenger-Gunner 5% | Commander-Sprinter 5% | Scavenger-Sprinter 4% | Commander-Gunner Dominant Class ---------------- Mutant | -10/Materials Mutant | -10/Mines Scavenger-Gunner | -9/Materials Gunner | -9/Mines Gunner | -9/Exiles Skirmisher | -8/Mines Skirmisher | -8/Materials Gunner | -8/Garrison Gunner | -8/Materials Gunner | -8/Garrison Gunner | -7/Factory Gunner | -7/Storage Gunner | -7/Garrison Commander-Gunner | -7/Recycling Sprinter | -5/Factory Sprinter | -5/Upper Caves Sprinter | -5/Warlord Sprinter | -4/Proximity Caves Sprinter | -4/Factory Commander-Sprinter | -4/Extension Scavenger-Sprinter | -4/Cetus Scavenger-Sprinter | -4/Archives Commander-Gunner | -4/Hub_04(d) Resources | -11 -10 -10 -9 -9 -9 -8 -8 -8 -8 -8 -7 -7 -7 -7 -5 -5 -5 -4 -4 -4 -4 -4 -4 ----------- Run | Yrd Mat Min Mat Min Exi Min Mat Gar Mat Gar Fac Sto Gar Rec Fac Upp War Pro Fac Ext Cet Arc Hub Matter Collected 11952 | 238 317 81 666 192 50 . 573 830 495 993 954 1042 786 149 617 25 378 276 516 1816 186 332 440 Remotely . | . . . . . . . . . . . . . . . . . . . . . . . . Salvage Created 15268 | 193 410 49 1204 457 . . 955 1246 741 1150 1012 1647 740 52 947 . 388 566 721 2246 72 322 150 Parts 801 | 17 17 6 87 26 . . 51 75 40 49 55 77 26 2 42 . 24 15 40 112 2 25 13 Haulers Intercepted 26 | . 2 . 6 . . . 3 . 2 . 5 4 . . . . . . . 4 . . . Recyclers Shooed 6 | 2 . . . . . . . . . . 1 . . . 1 . . . 2 . . . . Parts Field Recycled . | . . . . . . . . . . . . . . . . . . . . . . . . Retrieved Matter . | . . . . . . . . . . . . . . . . . . . . . . . . Parts Self-Destructed 15 | . . . . . . . . . . . . . . . . . . 15 . . . . . Prevented . | . . . . . . . . . . . . . . . . . . . . . . . . Parts Restored . | . . . . . . . . . . . . . . . . . . . . . . . . Kills | -11 -10 -10 -9 -9 -9 -8 -8 -8 -8 -8 -7 -7 -7 -7 -5 -5 -5 -4 -4 -4 -4 -4 -4 ------- Run | Yrd Mat Min Mat Min Exi Min Mat Gar Mat Gar Fac Sto Gar Rec Fac Upp War Pro Fac Ext Cet Arc Hub Combat Hostiles Destroyed 236 | . 9 3 17 11 . . 15 36 13 26 13 25 11 . 7 . 8 6 10 21 1 . 4 Melee 6 | . . . . . . . . . . . . . . . . . . . 1 5 . . . Guns 215 | . 7 1 14 11 . . 15 33 13 21 13 25 11 . 7 . 8 6 9 16 1 . 4 Cannons 7 | . 2 2 3 . . . . . . . . . . . . . . . . . . . . AOE 8 | . . . . . . . . 3 . 5 . . . . . . . . . . . . . Classes Destroyed 19 | 3 4 . 3 2 . . . 3 . 1 . 1 . . 1 . . . . . . . 1 Worker 26 | 1 1 1 4 1 . . 1 . . . . 4 . . 5 . . . 2 6 . . . Builder 12 | . . . 2 . . . 1 . . . . . . . 2 . . . 1 5 . . 1 Tunneler 8 | 5 . . . 2 . . . . . . . . . . . . . . . 1 . . . Hauler 26 | . 2 . 6 . . . 3 . 2 . 5 4 . . . . . . . 4 . . . Recycler 10 | 1 1 . 1 . . . 1 . . . 1 . . 1 1 . . . . 3 . . . Operator 10 | . . . 1 . . . . . . . . 1 . . 1 . . . . . . 7 . Watcher 21 | . 1 . 2 . . . 2 1 1 . 4 2 . . 3 . . . 4 1 . . . Swarmer 57 | . 6 3 5 . . . 4 15 2 6 . 1 3 . . . 3 . 4 5 . . . Cutter 3 | . . . . . . . . . . . . . . . . . . . . . . . 3 Grunt 71 | . 3 . 5 7 . . 5 10 6 10 2 9 2 . . . 2 5 1 4 . . . Brawler 5 | . . . . . . . . 1 . 2 . 1 . . . . . 1 . . . . . Duelist 5 | . . . . 2 . . . . . 2 . 1 . . . . . . . . . . . Protector 1 | . . . . . . . . . . . . 1 . . . . . . . . . . . Sentry 52 | . . . 8 . . . 6 5 4 3 2 6 4 . 4 . . . 2 8 . . . Hunter 16 | . . . . . . . . 4 1 1 1 3 1 . . . 1 . 1 2 . . 1 Programmer 20 | . . . . . . . . 1 . . 8 3 1 . 3 . 2 . 2 . . . . Behemoth 3 | . . . . . . . . . . 2 . . . . . . . . . 1 . . . Cetus Guard 1 | . . . . . . . . . . . . . . . . . . . . . 1 . . Enhanced Grunt 1 | . . . . . . . . . . . . . . . . . . . . . . 1 . Assembled 2 | . . . . 2 . . . . . . . . . . . . . . . . . . . Thug 1 | . . . . . . . . . . . . . . . . . 1 . . . . . . Martyr 1 | . . . . . . . . . . . . . . . 1 . . . . . . . . Guerrilla 1 | . . . . . . . . . . . . . . . . . . . . 1 . . . Best Kill Streak 11 | 6 5 2 4 3 . . 6 9 3 4 3 6 5 1 4 . 6 3 4 11 1 5 2 Combat Bots Only 9 | . 5 2 2 3 . . 6 9 2 4 3 6 5 . 2 . 6 3 3 3 1 . 2 Max Kills in Single Turn 3 | 1 2 1 2 2 . . 1 2 2 2 1 2 1 1 2 . 3 2 2 2 1 1 1 Gunslinging 1 | . 1 . 1 1 . . . 1 1 1 . 1 . . . . 1 . . . . . . Exploded 2 | . . . . . . . . 2 . 2 . . . . . . . . . . . . . Melee 1 | . . . . . . . . . . . . . . . . . . . 1 1 . . . Uniques/NPCs Destroyed . | . . . . . . . . . . . . . . . . . . . . . . . . Combat | -11 -10 -10 -9 -9 -9 -8 -8 -8 -8 -8 -7 -7 -7 -7 -5 -5 -5 -4 -4 -4 -4 -4 -4 -------- Run | Yrd Mat Min Mat Min Exi Min Mat Gar Mat Gar Fac Sto Gar Rec Fac Upp War Pro Fac Ext Cet Arc Hub Hostile Shots Fired 1086 | . 51 9 59 22 . . 38 138 53 103 77 175 111 . 27 1 6 32 45 71 10 . 58 Missed 387 | . 20 2 19 7 . . 9 39 15 28 22 62 38 . 9 1 4 23 23 37 4 . 25 Hits 699 | . 31 7 40 15 . . 29 99 38 75 55 113 73 . 18 . 2 9 22 34 6 . 33 Melee 12 | . . . . 3 . . . 1 . . . 4 . . . . . . . . . . 4 Projectile 687 | . 31 7 40 12 . . 29 98 38 75 55 109 73 . 18 . 2 9 22 34 6 . 29 AOE 7 | . . . . . . . . . . . . . . . . . . . . . . . 7 Critical Strikes 23 | . . . 2 . . . . 6 1 2 2 2 1 . 3 . . . . 1 1 . 2 Part Disruptions 1 | . . . . . . . . . . . 1 . . . . . . . . . . . . Damage Taken 10194 | . 317 98 491 215 . . 342 1285 565 1284 638 1212 629 . 417 . 44 196 399 844 127 . 1091 Core 1086 | . 71 . 62 57 . . . 102 27 174 60 117 78 . 52 . . 43 38 59 15 . 131 Absorbed by Shields 428 | . . . . . . . . . . 330 . . . . . . . . . 32 66 . . Redirected to Shielding 30 | . . . . . . . . . . . 30 . . . . . . . . . . . . Ignored by Resistances 136 | . . . . . . . . . . . 20 116 . . . . . . . . . . . Regen/Repaired (Parts) 144 | . 18 . . . . . . . . . . . . . 46 . 80 . . . . . . Core Remaining (%) 73 | 100 . 71 . . . 70 . . . 44 . . . 63 . . . 90 . . . . . Volleys Fired 793 | 18 42 9 54 13 . . 45 76 33 78 52 80 23 . 31 . 12 23 37 114 12 21 20 Largest 4 | 2 2 2 4 4 . . 4 4 4 4 4 4 4 . 4 . 3 3 3 4 3 3 4 Hottest 211 | 80 160 100 168 168 . . 168 168 168 188 182 211 189 . 109 . 99 99 146 204 76 81 114 Shots Fired 2451 | 36 74 13 196 52 . . 153 242 132 191 201 298 83 2 101 . 32 69 103 316 32 63 62 Gun 2356 | 36 42 4 175 52 . . 153 238 132 167 201 298 83 2 101 . 32 69 98 316 32 63 62 Cannon 56 | . 26 4 21 . . . . . . . . . . . . . . . 5 . . . . Launcher 28 | . . . . . . . . 4 . 24 . . . . . . . . . . . . . Special 11 | . 6 5 . . . . . . . . . . . . . . . . . . . . . Kinetic 1739 | . 24 4 114 26 . . 116 164 97 98 142 168 40 2 101 . 24 69 98 299 29 63 61 Thermal 661 | 36 50 9 82 26 . . 37 74 35 69 59 130 43 . . . . . 5 6 . . . Explosive 28 | . . . . . . . . 4 . 24 . . . . . . . . . . . . . Electromagnetic . | . . . . . . . . . . . . . . . . . . . . . . . . Entropic 23 | . . . . . . . . . . . . . . . . . 8 . . 11 3 . 1 Robot Hit Streak 28 | 6 6 4 15 8 . . 13 23 15 28 15 19 19 8 9 . 10 16 7 13 8 11 8 Robot Miss Streak 6 | 3 5 1 5 3 . . 5 3 5 4 5 4 4 1 4 . 2 3 3 6 2 3 2 Penetration Max 1 | . . . . . . . . . . . . 1 . . 1 . 1 1 1 1 . 1 . Secondary Targets 35 | . 1 . 2 3 . . 1 10 3 3 . 2 4 . . . 2 . . 3 . . 1 Max Gunslinging Chain 2 | . 1 . 1 2 . . 1 2 1 2 . 1 1 . . . 1 . . 1 . . 1 Shots Hit Robots 1424 | 21 43 4 113 24 . . 92 153 70 107 101 183 80 1 60 . 17 41 41 167 26 36 44 Core Hits 693 | 8 19 5 49 15 . . 35 61 30 54 36 77 48 1 33 . 13 20 32 103 9 25 20 Critical Kills 14 | . . . 1 . . . . . . 1 . . . . 1 . 3 2 1 3 . 2 . Critical Parts Destroyed 27 | . 2 . . 1 . . . 1 1 2 1 4 3 . 2 . 2 1 1 4 . 2 . Critical Strikes 75 | . 2 . 6 2 . . 2 8 4 5 3 8 4 . 4 . 5 3 2 13 . 4 . Burn 26 | . . . 5 1 . . 2 7 3 2 2 3 1 . . . . . . . . . . Destroy 39 | . 2 . 1 1 . . . 1 1 1 1 4 1 . 3 . 5 3 2 9 . 4 . Smash 6 | . . . . . . . . . . 2 . 1 2 . 1 . . . . . . . . Sunder 4 | . . . . . . . . . . . . . . . . . . . . 4 . . . Melee Attacks 275 | . . . 11 8 . . 19 17 1 32 4 26 84 . 28 . . 3 15 20 1 . 6 Impact 230 | . . . 11 8 . . 19 17 1 32 4 26 84 . 28 . . . . . . . . Slashing . | . . . . . . . . . . . . . . . . . . . . . . . . Piercing . | . . . . . . . . . . . . . . . . . . . . . . . . Entropic 45 | . . . . . . . . . . . . . . . . . . 3 15 20 1 . 6 Sneak Attacks 18 | . . . 2 1 . . 2 . . . . 3 . . 6 . . . . 4 . . . Combat Hostiles 2 | . . . . . . . . . . . . . . . . . . . . 2 . . . Follow-up Attacks . | . . . . . . . . . . . . . . . . . . . . . . . . Damage Inflicted 35153 | 231 750 131 1905 620 . . 1797 2820 1227 3690 2580 3549 2489 32 2017 . 688 1163 1633 5615 516 854 846 Guns 27382 | 231 446 24 1431 458 . . 1493 2460 1227 1620 2553 3213 1174 20 1524 . 688 1163 1380 4061 516 854 846 Cannons 534 | . 230 55 249 . . . . . . . . . . . . . . . . . . . . Explosions 1667 | . . . . . . . . 360 . 1307 . . . . . . . . . . . . . Melee 5293 | . . . 195 121 . . 283 . . 763 . 316 1315 . 493 . . . 253 1554 . . . Ramming 229 | . 26 52 30 41 . . 21 . . . 27 20 . 12 . . . . . . . . . Kinetic 20128 | . 350 24 781 142 . . 1093 1591 679 956 1834 1862 516 20 1524 . 548 1163 1380 3636 375 854 800 Thermal 7122 | 231 374 55 899 316 . . 400 869 548 664 719 1351 658 . . . . . . 38 . . . Explosive 1667 | . . . . . . . . 360 . 1307 . . . . . . . . . . . . . Electromagnetic . | . . . . . . . . . . . . . . . . . . . . . . . . Impact 3486 | . . . 195 121 . . 283 . . 763 . 316 1315 . 493 . . . . . . . . Slashing . | . . . . . . . . . . . . . . . . . . . . . . . . Piercing . | . . . . . . . . . . . . . . . . . . . . . . . . Entropic 2521 | . . . . . . . . . . . . . . . . . 140 . 253 1941 141 . 46 Highest Corruption 10 | . . . . . . . . . . . 6 10 10 10 . . . . 2 2 2 3 . Average Corruption 5 | . . . . . . . . . . . 3 8 10 10 . . . . 1 2 2 1 . Corruption Purged 5 | . . . . . . . . . . . . . . . . . . . . . . 5 . Corruption Blocked . | . . . . . . . . . . . . . . . . . . . . . . . . Effects 223 | . . . . . . . . . . . 46 60 49 30 . . . . 2 29 6 1 . Message Errors 47 | . . . . . . . . . . . 9 13 8 10 . . . . 1 6 . . . Matter Fused 51 | . . . . . . . . . . . 4 12 17 7 . . . . 1 7 2 1 . Heat Flow Errors 27 | . . . . . . . . . . . 8 3 7 2 . . . . . 6 1 . . Energy Discharges 33 | . . . . . . . . . . . 8 11 7 4 . . . . . 3 . . . Parts Rejected 3 | . . . . . . . . . . . . 2 . . . . . . . 1 . . . Parts Fused 3 | . . . . . . . . . . . . 1 1 . . . . . . 1 . . . Data Loss (minor) 22 | . . . . . . . . . . . 7 6 2 4 . . . . . 1 2 . . Data Loss (major) 11 | . . . . . . . . . . . 4 1 3 1 . . . . . 2 . . . Misfires 13 | . . . . . . . . . . . 1 6 3 2 . . . . . 1 . . . Alerts 3 | . . . . . . . . . . . 2 . 1 . . . . . . . . . . Weapon Failures 10 | . . . . . . . . . . . 3 5 . . . . . . . 1 1 . . Overload Shots . | . . . . . . . . . . . . . . . . . . . . . . . . Overflow Damage 1339 | . 2 . 134 81 . . 110 . . 166 . 251 162 . 293 . . . 30 110 . . . Projectiles 11 | . 2 . 9 . . . . . . . . . . . . . . . . . . . . Explosions . | . . . . . . . . . . . . . . . . . . . . . . . . Melee 1328 | . . . 125 81 . . 110 . . 166 . 251 162 . 293 . . . 30 110 . . . Knockbacks 11 | . 1 1 3 . . . . . . . . 2 1 1 2 . . . . . . . . Impact 11 | . 1 1 3 . . . . . . . . 2 1 1 2 . . . . . . . . Kinetic . | . . . . . . . . . . . . . . . . . . . . . . . . Secondary . | . . . . . . . . . . . . . . . . . . . . . . . . Self-Inflicted Damage 77 | . . . . . . . . . . 77 . . . . . . . . . . . . . Shots 2 | . . . . . . . . . . 2 . . . . . . . . . . . . . Rammed 23 | . 3 4 5 5 . . . . . . 4 1 . 1 . . . . . . . . . Targets Rammed 33 | . 5 5 6 5 . . 3 . . . 6 1 . 2 . . . . . . . . . Kicked 6 | . 1 . . . . . 3 . . . 2 . . . . . . . . . . . . Crushed 4 | . 1 1 1 . . . . . . . . . . 1 . . . . . . . . . Highest Temperature 486 | 126 120 100 324 201 . . 138 311 102 291 253 295 444 238 76 . 20 20 72 486 158 48 302 Average Temperature 64 | 44 30 50 80 69 . . 32 69 17 65 69 62 121 111 18 . 9 7 25 92 31 15 75 Received Heat Transfer 2511 | . 90 . 138 72 . . 99 459 234 534 93 381 138 . 36 . . 45 . 48 . . 144 Effects 10 | . . . . . . . . 4 . . . . 2 . . . . . . 4 . . . Shutdowns 2 | . . . . . . . . . . . . . . . . . . . . 2 . . . Energy Bleed 3 | . . . . . . . . 1 . . . . 1 . . . . . . 1 . . . Interference 3 | . . . . . . . . 3 . . . . . . . . . . . . . . . Damage (minor) 1 | . . . . . . . . . . . . . 1 . . . . . . . . . . Damage (major) 1 | . . . . . . . . . . . . . . . . . . . . 1 . . . Siege Activations . | . . . . . . . . . . . . . . . . . . . . . . . . Martial Activations . | . . . . . . . . . . . . . . . . . . . . . . . . Shielding Activations . | . . . . . . . . . . . . . . . . . . . . . . . . Robots Disrupted . | . . . . . . . . . . . . . . . . . . . . . . . . Combat Hostiles . | . . . . . . . . . . . . . . . . . . . . . . . . Robots Corrupted 11 | . . . 2 . . . 1 . . 2 . 2 1 . 3 . . . . . . . . Combat Hostiles . | . . . . . . . . . . . . . . . . . . . . . . . . Parts Fried 5 | . . . 1 1 . . . . . . . . 1 . 2 . . . . . . . . Impact Corruptions 35 | . . 1 6 1 . . 4 . . 3 . 6 6 . 8 . . . . . . . . Robots Melted . | . . . . . . . . . . . . . . . . . . . . . . . . Combat Hostiles . | . . . . . . . . . . . . . . . . . . . . . . . . Parts Melted 22 | 1 1 . 6 . . . 1 1 2 3 2 3 1 . 1 . . . . . . . . Heat Transferred 14322 | 525 806 111 2138 629 . . 888 2072 1221 1294 1258 2586 707 . . . . . . 87 . . . Parts Sabotaged . | . . . . . . . . . . . . . . . . . . . . . . . . Parts Stolen . | . . . . . . . . . . . . . . . . . . . . . . . . Parts Stripped . | . . . . . . . . . . . . . . . . . . . . . . . . Power Chain Reactions . | . . . . . . . . . . . . . . . . . . . . . . . . Alert | -11 -10 -10 -9 -9 -9 -8 -8 -8 -8 -8 -7 -7 -7 -7 -5 -5 -5 -4 -4 -4 -4 -4 -4 ------- Run | Yrd Mat Min Mat Min Exi Min Mat Gar Mat Gar Fac Sto Gar Rec Fac Upp War Pro Fac Ext Cet Arc Hub Maximum Alert Level 4 | . . . 1 . . . . 4 3 4 3 1 3 1 . . . . . 3 3 2 3 Low Security (%) 58 | 100 100 100 62 100 . 100 100 15 . . 46 83 15 77 100 . . . 100 36 . . 6 Level 1 12 | . . . 37 . . . . 11 . . 7 16 41 22 . . . . . 22 . 7 . Level 2 18 | . . . . . . . . 37 97 33 36 . 30 . . . . . . 15 87 92 74 Level 3 7 | . . . . . . . . 19 2 42 9 . 11 . . . . . . 25 12 . 18 Level 4 2 | . . . . . . . . 16 . 23 . . . . . . . . . . . . . Level 5 . | . . . . . . . . . . . . . . . . . . . . . . . . High Security . | . . . . . . . . . . . . . . . . . . . . . . . . Max Security . | . . . . . . . . . . . . . . . . . . . . . . . . Peak Influence 1559 | 10 110 53 264 100 . . 177 1360 705 1559 818 270 703 316 191 . . . 172 933 725 547 910 Initial 818 | . . 13 . 100 . . . . 663 423 818 93 122 316 . . . . 37 50 510 259 156 Average 276 | 1 20 3 180 29 . . 20 622 617 897 349 144 409 118 57 . . . 100 396 626 485 533 Influence Increases 12285 | 35 383 69 940 215 . . 500 1380 414 1176 534 983 601 79 535 . 160 210 480 1799 395 338 1059 Destroy 0b10 Robot/C 5980 | . 180 60 520 180 . . 300 720 260 520 260 540 220 40 140 . 160 120 200 940 160 80 380 Destroy 0b10 Robot/NC 645 | 35 25 5 90 15 . . 40 5 15 10 50 60 15 5 60 . . 10 35 115 10 35 10 Destroy Leader 1152 | . 46 . 180 20 . . 100 30 86 30 138 172 20 . 66 . . 20 58 84 . . 102 Allied During Kill 1301 | . . . 74 . . . . . . . . 26 . 19 12 . . . . 466 159 115 430 Successful Hack 443 | . 52 . 34 . . . 25 14 . 28 63 60 . . 68 . . . 36 31 6 . 26 Select Force Hacks 90 | . 60 . 30 . . . . . . . . . . . . . . . . . . . . Disable Machine 450 | . 15 . . . . . 15 15 45 15 15 90 15 15 45 . . . 15 15 15 75 45 Anti-Garrison Action 1000 | . . . . . . . . 450 . 350 . . 200 . . . . . . . . . . Destroy Structure 744 | . 5 4 12 . . . 20 131 8 193 8 20 101 . 54 . . . 46 58 30 18 36 Partial Spotted 135 | . . . . . . . . . . . . . . . 45 . . . 30 30 . 15 15 Lose Combat Pursuer 345 | . . . . . . . . 15 . 30 . 15 30 . 45 . . 60 60 60 15 . 15 Influence Decreases 11510 | 35 349 103 683 472 . . 500 20 1123 268 1887 1001 86 782 476 43 76 250 437 990 658 540 731 Entered New Map 3708 | . . 21 . 157 . . . . 697 228 741 113 66 387 . 23 16 100 23 53 402 390 291 Time Decay 5856 | 35 349 82 663 315 . . 350 . 416 . 666 542 . 375 316 20 60 150 374 607 206 150 180 Lost Part 320 | . . . . . . . . 20 10 40 20 20 20 . . . . . 20 40 10 . 120 Lost Ally 790 | . . . 20 . . . . . . . 10 240 . 20 10 . . . 20 290 40 . 140 Purge Threat 836 | . . . . . . . 150 . . . 450 86 . . 150 . . . . . . . . Squads Dispatched 62 | . 3 . 4 . . . 3 . 3 . 10 11 . . 8 . . . 6 5 . . 9 Investigation 17 | . 3 . 2 . . . . . . . 3 2 . . 2 . . . 3 2 . . . Extermination 15 | . . . . . . . . . . . 6 4 . . 2 . . . 2 . . . 1 Reinforcement 20 | . . . 2 . . . 2 . 2 . 1 2 . . 3 . . . 1 3 . . 4 Assault 4 | . . . . . . . . . 1 . . 2 . . . . . . . . . . 1 Garrison 6 | . . . . . . . 1 . . . . 1 . . 1 . . . . . . . 3 Intercept . | . . . . . . . . . . . . . . . . . . . . . . . . Searches Triggered . | . . . . . . . . . . . . . . . . . . . . . . . . Construction Impeded 3 | . . . . . . . . . . . . . . . . . . . . 3 . . . Haulers Reinforced 2 | . . . . . . . . . . . . . . . 2 . . . . . . . . Active Scanning Responses . | . . . . . . . . . . . . . . . . . . . . . . . . Cargo Convoy Interrupts . | . . . . . . . . . . . . . . . . . . . . . . . . Stealth | -11 -10 -10 -9 -9 -9 -8 -8 -8 -8 -8 -7 -7 -7 -7 -5 -5 -5 -4 -4 -4 -4 -4 -4 --------- Run | Yrd Mat Min Mat Min Exi Min Mat Gar Mat Gar Fac Sto Gar Rec Fac Upp War Pro Fac Ext Cet Arc Hub Distress Signals 14 | . . . 1 . . . 1 . . . 1 1 . . 1 . . . 2 5 2 . . Communications Jammed . | . . . . . . . . . . . . . . . . . . . . . . . . Distress Signals . | . . . . . . . . . . . . . . . . . . . . . . . . Times Spotted 402 | . 19 6 33 11 . . 24 35 16 28 23 38 12 2 18 5 17 11 18 42 10 9 25 Peak Tracking Total 11 | . 5 3 6 3 . . 5 7 4 5 3 11 5 2 4 5 5 3 5 5 5 1 9 Tactical Retreats 15 | . . . . . . . . 1 . 2 . 1 1 . 3 . . 2 1 2 1 . 1 Traps | -11 -10 -10 -9 -9 -9 -8 -8 -8 -8 -8 -7 -7 -7 -7 -5 -5 -5 -4 -4 -4 -4 -4 -4 ------- Run | Yrd Mat Min Mat Min Exi Min Mat Gar Mat Gar Fac Sto Gar Rec Fac Upp War Pro Fac Ext Cet Arc Hub Traps Triggered 13 | . 2 . . . . . . 2 . 1 . 1 3 . . . . . 2 2 . . . Indirectly . | . . . . . . . . . . . . . . . . . . . . . . . . Trap Hack Attempts . | . . . . . . . . . . . . . . . . . . . . . . . . Triggered . | . . . . . . . . . . . . . . . . . . . . . . . . Disarmed . | . . . . . . . . . . . . . . . . . . . . . . . . Reprogrammed . | . . . . . . . . . . . . . . . . . . . . . . . . Reused . | . . . . . . . . . . . . . . . . . . . . . . . . Traps Extracted . | . . . . . . . . . . . . . . . . . . . . . . . . Installed . | . . . . . . . . . . . . . . . . . . . . . . . . Triggered . | . . . . . . . . . . . . . . . . . . . . . . . . Machines | -11 -10 -10 -9 -9 -9 -8 -8 -8 -8 -8 -7 -7 -7 -7 -5 -5 -5 -4 -4 -4 -4 -4 -4 ---------- Run | Yrd Mat Min Mat Min Exi Min Mat Gar Mat Gar Fac Sto Gar Rec Fac Upp War Pro Fac Ext Cet Arc Hub Machines Disabled 44 | . 1 . . . . . 1 7 3 7 1 6 3 1 3 . . . 1 1 1 5 3 Max in Single Turn 2 | . 1 . . . . . 1 1 1 2 1 1 1 1 1 . . . 1 1 1 1 1 Garrison Access 2 | . . . . . . . . . . . 1 . . . 1 . . . . . . . . Garrison Relay 12 | . . . . . . . . 6 . 4 . . 2 . . . . . . . . . . Phase Generator 1 | . . . . . . . . . . 1 . . . . . . . . . . . . . Machines Repaired . | . . . . . . . . . . . . . . . . . . . . . . . . Machines Dismantled . | . . . . . . . . . . . . . . . . . . . . . . . . Machines Sabotaged . | . . . . . . . . . . . . . . . . . . . . . . . . Overloaded Fab Kills . | . . . . . . . . . . . . . . . . . . . . . . . . Hacking | -11 -10 -10 -9 -9 -9 -8 -8 -8 -8 -8 -7 -7 -7 -7 -5 -5 -5 -4 -4 -4 -4 -4 -4 --------- Run | Yrd Mat Min Mat Min Exi Min Mat Gar Mat Gar Fac Sto Gar Rec Fac Upp War Pro Fac Ext Cet Arc Hub Machines Accessed 134 | . 11 . 12 . 2 . 10 3 5 3 12 13 . 10 12 . 7 . 13 15 3 . 3 Terminals 84 | . 8 . 9 . . . 6 3 3 3 6 11 . 5 5 . . . 6 14 3 . 2 Fabricators 3 | . . . . . . . . . . . 1 . . . 1 . . . 1 . . . . Repair Stations 4 | . 1 . . . . . . . . . 1 . . . 1 . . . 1 . . . . Recycling Units 19 | . 2 . 2 . . . 2 . 1 . 1 1 . 5 1 . . . 3 1 . . . Scanalyzers 9 | . . . 1 . . . 1 . . . 2 . . . 3 . . . 2 . . . . Garrison Access 6 | . . . . . . . 1 . 1 . 1 1 . . 1 . . . . . . . 1 Total Hacks 330 | . 31 . 34 . 5 . 21 8 15 6 32 24 . 16 34 . 13 . 43 30 8 . 10 Successful 174 | . 20 . 19 . 5 . 16 2 6 2 17 16 . 5 15 . 13 . 18 13 3 . 4 Failed 153 | . 10 . 15 . . . 5 6 9 4 14 8 . 11 18 . . . 25 17 5 . 6 Catastrophic 20 | . . . . . . . . . 1 1 2 2 . 3 2 . . . 3 3 2 . 1 Database Lockouts 3 | . 1 . . . . . . . . . 1 . . . 1 . . . . . . . . Manual 136 | . 18 . 20 . 1 . 8 5 7 1 12 14 . 5 12 . 1 . 15 14 1 . 2 Terminals 210 | . 25 . 26 . . . 13 8 9 6 16 19 . 8 15 . . . 22 27 8 . 8 Fabricators 10 | . . . . . . . . . . . 2 . . . 3 . . . 5 . . . . Repair Stations 7 | . 2 . . . . . . . . . 2 . . . 1 . . . 2 . . . . Recycling Units 37 | . 4 . 3 . . . 2 . 2 . 2 4 . 8 2 . . . 7 3 . . . Scanalyzers 37 | . . . 5 . . . 5 . . . 9 . . . 11 . . . 7 . . . . Garrison Access 11 | . . . . . . . 1 . 4 . 1 1 . . 2 . . . . . . . 2 Terminal Hacks 81 | . 9 . 4 . 5 . 3 2 3 2 6 11 . . 4 . 13 . 6 8 3 . 2 Record 19 | . . . . . 4 . . . . . . . . . . . 11 . . 1 3 . . Robot Schematic 1 | . 1 . . . . . . . . . . . . . . . . . . . . . . Robot Analysis 4 | . 1 . 1 . . . . . 2 . . . . . . . . . . . . . . Prototype ID Bank 6 | . 3 . 1 . . . . . . . 1 1 . . . . . . . . . . . Open Door 16 | . . . . . . . . . . . . 7 . . . . 2 . 1 6 . . . Branch Access Points 3 | . . . 1 . . . . . . . . . . . 1 . . . 1 . . . . Emergency Access Points 2 | . . . . . . . . 1 . 1 . . . . . . . . . . . . . Terminal Index 2 | . 1 . . . . . . . . . . 1 . . . . . . . . . . . Unreport Threat 6 | . . . . . . . 1 . . . 3 1 . . 1 . . . . . . . . Locate Traps 12 | . 3 . . . . . 1 . 1 . 1 . . . 2 . . . 1 1 . . 2 Transport Status 1 | . . . 1 . . . . . . . . . . . . . . . . . . . . Recall Investigation 2 | . . . . . . . . . . . 1 . . . . . . . 1 . . . . Recall Reinforcements 1 | . . . . . . . . . . . . . . . . . . . 1 . . . . Hauler Manifests 1 | . . . . . . . . . . . . . . . . . . . 1 . . . . Registered Components 1 | . . . . . . . 1 . . . . . . . . . . . . . . . . Zone Layout 1 | . . . . . . . . . . . . 1 . . . . . . . . . . . Garrison Registry 2 | . . . . . . . . 1 . 1 . . . . . . . . . . . . . Proto ID Catalog 1 | . . . . . 1 . . . . . . . . . . . . . . . . . . Fabricator Hacks 6 | . . . . . . . . . . . 2 . . . 1 . . . 3 . . . . Load Schematic 4 | . . . . . . . . . . . 1 . . . 1 . . . 2 . . . . Build 2 | . . . . . . . . . . . 1 . . . . . . . 1 . . . . Repair Station Hacks 2 | . 2 . . . . . . . . . . . . . . . . . . . . . . Scan Component 1 | . 1 . . . . . . . . . . . . . . . . . . . . . . Repair 1 | . 1 . . . . . . . . . . . . . . . . . . . . . . Recycling Unit Hacks 12 | . 1 . 1 . . . 1 . 1 . 1 . . 4 . . . . 2 1 . . . Retrieve Components 12 | . 1 . 1 . . . 1 . 1 . 1 . . 4 . . . . 2 1 . . . Scanalyzer 21 | . . . 5 . . . 5 . . . 4 . . . 5 . . . 2 . . . . Insert Component 8 | . . . 2 . . . 1 . . . 2 . . . 2 . . . 1 . . . . Analyze 6 | . . . 2 . . . 1 . . . 1 . . . 2 . . . . . . . . Retrieve Study 7 | . . . 1 . . . 3 . . . 1 . . . 1 . . . 1 . . . . Garrison Access Hacks 6 | . . . . . . . 1 . 1 . 1 1 . . 1 . . . . . . . 1 Unlock Access 4 | . . . . . . . 1 . 1 . . 1 . . . . . . . . . . 1 Seal Access 2 | . . . . . . . . . . . 1 . . . 1 . . . . . . . . Unauthorized Hacks 46 | . 8 . 9 . . . 6 . 1 . 3 4 . 1 4 . . . 5 4 . . 1 Terminals 34 | . 6 . 8 . . . 6 . 1 . 2 1 . 1 2 . . . 4 2 . . 1 Assimilate 4 | . . . . . . . . . . . . . . . . . . . 3 1 . . . Botnet 14 | . 1 . 2 . . . 1 . 1 . 2 1 . 1 2 . . . 1 1 . . 1 Skim 16 | . 5 . 6 . . . 5 . . . . . . . . . . . . . . . . Fabricators 2 | . . . . . . . . . . . . . . . 1 . . . 1 . . . . Recompile 2 | . . . . . . . . . . . . . . . 1 . . . 1 . . . . Repair Stations . | . . . . . . . . . . . . . . . . . . . . . . . . Recycling Units 10 | . 2 . 1 . . . . . . . 1 3 . . 1 . . . . 2 . . . Reject 3 | . . . . . . . . . . . 1 1 . . . . . . . 1 . . . Recyclers 2 | . . . . . . . . . . . . 1 . . 1 . . . . . . . . Mask 2 | . . . . . . . . . . . . 1 . . . . . . . 1 . . . Tunnel 3 | . 2 . 1 . . . . . . . . . . . . . . . . . . . . Scanalyzers . | . . . . . . . . . . . . . . . . . . . . . . . . Garrison Access . | . . . . . . . . . . . . . . . . . . . . . . . . Data Cores Recovered 1 | . . . . . . . . . . . . . . . 1 . . . . . . . . Used . | . . . . . . . . . . . . . . . . . . . . . . . . Hacking Detections 107 | . 9 . 11 . . . 8 3 5 3 10 9 . 7 11 . . . 13 12 3 . 3 Full Trace Events 11 | . . . 1 . . . . 1 . . 3 2 . . . . . . 2 2 . . . Feedback Events . | . . . . . . . . . . . . . . . . . . . . . . . . Feedback Blocked . | . . . . . . . . . . . . . . . . . . . . . . . . Robot Schematics Acquired 1 | . 1 . . . . . . . . . . . . . . . . . . . . . . Robots Built 1 | . . . . . . . . . . . 1 . . . . . . . . . . . . Authchips . | . . . . . . . . . . . . . . . . . . . . . . . . Time 40 | . . . . . . . . . . . 40 . . . . . . . . . . . . Total Robot Build Rating 1 | . . . . . . . . . . . 1 . . . . . . . . . . . . Part Schematics Acquired 5 | . . . 2 . . . . . . . 1 . . . 2 . . . . . . . . Parts Built 1 | . . . . . . . . . . . . . . . . . . . 1 . . . . Authchips 1 | . . . . . . . . . . . . . . . . . . . 1 . . . . Time 58 | . . . . . . . . . . . . . . . . . . . 58 . . . . Total Part Build Rating 3 | . . . . . . . . . . . . . . . . . . . 3 . . . . Part Studies Acquired 6 | . . . 1 . . . 2 . . . 1 . . . 1 . . . 1 . . . . Parts Repaired 1 | . 1 . . . . . . . . . . . . . . . . . . . . . . Time 26 | . 26 . . . . . . . . . . . . . . . . . . . . . . Parts Recycled . | . . . . . . . . . . . . . . . . . . . . . . . . Recycled Matter . | . . . . . . . . . . . . . . . . . . . . . . . . Retrieved Matter . | . . . . . . . . . . . . . . . . . . . . . . . . Retrieved Components 57 | . 2 . 10 . . . . . 9 . 8 . . 14 . . . . 4 10 . . . Parts Scanalyzed 8 | . . . 2 . . . 1 . . . 2 . . . 2 . . . 1 . . . . Part Schematics Acquired 5 | . . . 2 . . . . . . . 1 . . . 2 . . . . . . . . Parts Damaged 1 | . . . . . . . . . . . . . . . . . . . 1 . . . . Bothacking | -11 -10 -10 -9 -9 -9 -8 -8 -8 -8 -8 -7 -7 -7 -7 -5 -5 -5 -4 -4 -4 -4 -4 -4 ------------ Run | Yrd Mat Min Mat Min Exi Min Mat Gar Mat Gar Fac Sto Gar Rec Fac Upp War Pro Fac Ext Cet Arc Hub Used RIF Installer . | . . . . . . . . . . . . . . . . . . . . . . . . Robots Hacked . | . . . . . . . . . . . . . . . . . . . . . . . . Non-combat . | . . . . . . . . . . . . . . . . . . . . . . . . Combat . | . . . . . . . . . . . . . . . . . . . . . . . . Robot Hacks Applied . | . . . . . . . . . . . . . . . . . . . . . . . . Relay Couplers Released 48 | . . . . . . . . 25 . 16 . . 7 . . . . . . . . . . Machine Destruction 48 | . . . . . . . . 25 . 16 . . 7 . . . . . . . . . . Fabnet Peak Effective % . | . . . . . . . . . . . . . . . . . . . . . . . . Robots Rewired 27 | . . . . . . . . . . . . . . 10 . . . . . 17 . . . Allies Hacked 1 | . . . . . . . . . . . 1 . . . . . . . . . . . . Hacks Repelled . | . . . . . . . . . . . . . . . . . . . . . . . . Allies | -11 -10 -10 -9 -9 -9 -8 -8 -8 -8 -8 -7 -7 -7 -7 -5 -5 -5 -4 -4 -4 -4 -4 -4 -------- Run | Yrd Mat Min Mat Min Exi Min Mat Gar Mat Gar Fac Sto Gar Rec Fac Upp War Pro Fac Ext Cet Arc Hub Total Allies 60 | . . 3 . . . . . . . . 1 12 . 10 . . . . 3 26 5 . . Largest Group 12 | . . 3 3 . . . . . . . 1 12 . 10 7 . . . 2 12 12 11 9 Highest-Rated Group 882 | . . 40 40 . . . . . . . 14 235 . 177 119 . . . 52 614 882 806 571 Highest-Rated Ally 159 | . . 16 16 . . . . . . . 14 31 . 32 30 . . . 26 159 159 132 96 Initial Warlord ECA Mod 24 | . . . . . . . . . 10 10 18 18 18 24 22 22 22 21 21 21 21 21 21 Total Orders 30 | . . . . . . . . . . . . . . . . . . . 12 8 10 . . STAY 6 | . . . . . . . . . . . . . . . . . . . 6 . . . . ROAM 4 | . . . . . . . . . . . . . . . . . . . . 2 2 . . FOLLOW 18 | . . . . . . . . . . . . . . . . . . . 6 4 8 . . EXPLORE 2 | . . . . . . . . . . . . . . . . . . . . 2 . . . Ally Attacks 425 | . . . 79 . . . . . . . . 52 . 8 9 . . . . 155 42 16 64 Total Damage 10492 | . . . 686 . . . . . . . . 716 . 210 133 . . . . 4045 1671 482 2549 Kills 80 | . . . 12 . . . . . . . . 3 . 2 . . . . . 32 9 4 18 Allies Corrupted 6 | . . . . . . . . . . . . 3 . . 1 . . . 1 1 . . . Allies Melted 3 | . . . . . . . . . . . . 1 . . . . 1 . . 1 . . . Intel | -11 -10 -10 -9 -9 -9 -8 -8 -8 -8 -8 -7 -7 -7 -7 -5 -5 -5 -4 -4 -4 -4 -4 -4 ------- Run | Yrd Mat Min Mat Min Exi Min Mat Gar Mat Gar Fac Sto Gar Rec Fac Upp War Pro Fac Ext Cet Arc Hub Active Infowar (turns) 7584 | 15 1008 1037 2201 669 . 75 260 . . . . . . . . . . . 4 1212 433 307 363 Optics 2315 | . . . . . . . . . . . . . . . . . . . . 1212 433 307 363 Terrain 4 | . . . . . . . . . . . . . . . . . . . 4 . . . . Seismic 5265 | 15 1008 1037 2201 669 . 75 260 . . . . . . . . . . . . . . . . Robot Analysis Total 4 | . 1 . 1 . . . . . 2 . . . . . . . . . . . . . . Derelict Logs Recovered 5 | . . 1 . 1 . . . . . . . . . . . . . 3 . . . . . Drone Launches 2 | . . . . . . . . . . . . . . . . . . . . 2 . . . Drone Recoveries . | . . . . . . . . . . . . . . . . . . . . . . . . Exploration | -11 -10 -10 -9 -9 -9 -8 -8 -8 -8 -8 -7 -7 -7 -7 -5 -5 -5 -4 -4 -4 -4 -4 -4 ------------- Run | Yrd Mat Min Mat Min Exi Min Mat Gar Mat Gar Fac Sto Gar Rec Fac Upp War Pro Fac Ext Cet Arc Hub Turns Passed 25269 | 141 1557 1152 2982 1099 416 77 1437 1231 1011 1304 2556 1761 1361 1055 1087 46 670 383 874 1966 433 307 363 Spaces Moved 21840 | 68 884 681 1648 629 356 82 1187 855 687 899 1432 836 675 621 1938 190 1423 1306 2068 2194 665 238 278 Core 242 | 12 . . . . . . . . . . . 1 . . . . 146 . . 83 . . . Treads 6250 | . 653 681 1648 629 123 . . . . . 347 835 675 621 38 . . . . . . . . Legs 5444 | 56 231 . . . 233 82 1187 855 687 899 1085 . . . . . . . . . . . 129 Wheels . | . . . . . . . . . . . . . . . . . . . . . . . . Hover . | . . . . . . . . . . . . . . . . . . . . . . . . Flight 9904 | . . . . . . . . . . . . . . . 1900 190 1277 1306 2068 2111 665 238 149 Fastest Speed 17 | 50 120 160 160 160 90 90 90 90 90 90 90 145 145 145 17 20 20 17 17 17 17 17 17 Average Speed 81 | 107 149 160 160 160 114 90 90 90 90 90 155 146 145 145 22 20 33 19 25 27 17 17 58 Slowest Speed 900 | 120 160 160 160 160 170 90 90 90 90 90 400 900 145 145 145 20 150 20 99 200 17 92 180 Overloaded Moves 17 | . . . . . . . . . . . . . . . 6 . . 5 6 . . . . Propulsion Burnouts . | . . . . . . . . . . . . . . . . . . . . . . . . Robots Hopped 48 | . . . . . . . . . . . . . . . 11 . 3 1 12 19 . 1 1 Potential Cave-ins . | . . . . . . . . . . . . . . . . . . . . . . . . Cave-ins Triggered . | . . . . . . . . . . . . . . . . . . . . . . . . Exploration Rate (%) 67 | 5 98 99 96 95 71 21 75 89 40 70 30 91 50 92 30 18 95 96 34 97 95 95 26 Regions Visited 23 Branch Regions 13 Pre-discovered Areas 11 | . 3 . 3 . 1 . . . . . . 1 . . . 1 . 2 . . . . . Known Exits Taken 9 | . . 1 1 . . . 1 . 1 . 1 1 . 1 1 . . . 1 . . . . Unknown Exits Taken 11 | 1 1 . . 1 1 1 . . . . . . . . . 1 1 1 . 1 1 1 . Scrap Searched 2 | . . 1 . . . . . . . . . . . . . . . 1 . . . . . Spaces Dug 160 | . 4 3 9 . . . 16 2 1 19 3 11 41 . 22 . . 3 16 4 . . 6 Terrain Destroyed 419 | . 4 5 9 . . . 16 44 1 183 3 18 41 . 27 . . 11 24 14 . 8 11 Melee 141 | . . . 9 . . . 16 2 1 11 3 11 41 . 22 . . 3 12 4 . . 6 Projectile 68 | . 4 5 . . . . . . . 4 . 7 . . 5 . . 8 12 10 . 8 5 AOE 210 | . . . . . . . . 42 . 168 . . . . . . . . . . . . . Terrain Rammed . | . . . . . . . . . . . . . . . . . . . . . . . . Walls Destroyed . | . . . . . . . . . . . . . . . . . . . . . . . . Machines Disabled . | . . . . . . . . . . . . . . . . . . . . . . . . Actions | -11 -10 -10 -9 -9 -9 -8 -8 -8 -8 -8 -7 -7 -7 -7 -5 -5 -5 -4 -4 -4 -4 -4 -4 --------- Run | Yrd Mat Min Mat Min Exi Min Mat Gar Mat Gar Fac Sto Gar Rec Fac Upp War Pro Fac Ext Cet Arc Hub Total 27407 | 96 1030 715 1873 674 365 84 1450 1148 996 1231 1667 1209 924 779 2496 197 1592 1371 2316 3336 960 463 435 Wait 3273 | . 56 11 52 8 . . 162 153 249 178 95 166 113 8 433 8 62 41 157 777 271 189 84 Move 21731 | 67 883 680 1647 628 355 81 1186 854 686 898 1431 836 674 620 1915 189 1417 1303 2047 2159 664 235 276 Hop 39 | . . . . . . . . . . . . . . . 11 . 2 1 8 15 . 1 1 Pick Up 123 | 4 11 2 18 1 . . 11 2 1 2 12 16 1 2 15 . 4 . 10 4 2 2 3 Fast Attach 132 | 7 4 . 3 . 4 1 1 4 1 1 14 21 3 2 8 . 15 . 9 13 2 6 13 Attach 44 | . 1 . 3 . . . 3 1 1 4 2 4 . . 8 . 1 . 3 7 1 . 5 Detach 37 | . 2 . . . . . . 2 . 1 2 4 . 1 3 . 3 . 4 7 1 3 4 Swap 285 | . 16 7 41 10 1 1 10 22 15 31 20 17 23 1 14 . 6 . 16 22 3 1 8 Drop 257 | . 10 1 38 1 5 1 10 7 9 5 29 36 3 5 30 . 21 . 10 13 3 5 15 Fire 793 | 18 42 9 54 13 . . 45 76 33 78 52 80 23 . 31 . 12 23 37 114 12 21 20 Melee 275 | . . . 11 8 . . 19 17 1 32 4 26 84 . 28 . . 3 15 20 1 . 6 Ram . | . . . . . . . . . . . . . . . . . . . . . . . . Kick 6 | . 1 . . . . . 3 . . . 2 . . . . . . . . . . . . Crush 27 | . 4 5 6 5 . . . . . . 4 1 . 2 . . . . . . . . . Escape Stasis 40 | . . . . . . . . 10 . . . . . . . . . . . 30 . . . Rewire 345 | . . . . . . . . . . 1 . 2 . 138 . . 49 . . 155 . . . Trap . | . . . . . . . . . . . . . . . . . . . . . . . . Miscellaneous . | . . . . . . . . . . . . . . . . . . . . . . . . Route ------- -11/Scrapyard -10/Materials (discovered 5 exits: *Mat x3 / [*Min] / Sub) -10/Mines (discovered 3 exits: *Mat x2 / *Sub) -9/Materials (discovered 4 exits: *Mat x3 / *Min) -9/Mines (discovered 3 exits: *Mat x2 / *Exi) -9/Exiles -8/Mines -8/Materials (discovered 4 exits: *Fac x3 / Gar) -8/Garrison (discovered 3 exits: *Mat x3) -8/Materials (discovered 4 exits: *Fac x3 / Gar) -8/Garrison (discovered 4 exits: *Fac x3 / [*Mat]) -7/Factory (discovered 7 exits: *Fac x4 / *Sto / *Low x2) -7/Storage (discovered 3 exits: *Fac / Rec / Gar) -7/Garrison -7/Recycling (discovered 2 exits: *Fac / Scr) -5/Factory (discovered 4 exits: *Fac x2 / *Upp x2) -5/Upper Caves -5/Warlord -4/Proximity Caves -4/Factory (discovered 4 exits: *Upp x2 / *Ext x2) -4/Extension (discovered 3 exits: [*Res x2] / *Cet) -4/Cetus (discovered 3 exits: [*Res x2] / *Arc) -4/Archives (discovered 3 exits: [*Res] / *Hub x2) -4/Hub_04(d) (discovered 2 exits: [*Res] / Gar) History --------- Turn | Location | Event 6 | -11/Scrapyard | Discovered new exit (range 16) 142 | -11/Scrapyard | Entered Materials 313 | -10/Materials | Build established: Mutant 384 | -10/Materials | Repaired Seismic Detector 402 | -10/Materials | Discovered new exit (range 16) 758 | -10/Materials | Discovered new exit (range 13) 890 | -10/Materials | Identified exit to Subcaves 890 | -10/Materials | Identified exit to Materials 949 | -10/Materials | Learned location of Recycling (-7) 1000 | -10/Materials | Learned location of 2 exits from Mines 1042 | -10/Materials | Loaded intel: 13 trap records 1115 | -10/Materials | Learned Storage garrison access intel 1166 | -10/Materials | Learned location of 1 exit from Recycling 1184 | -10/Materials | Central database locked down 1699 | -10/Materials | Entered Mines 2099 | -10/Mines | Received a Rocket Launcher from a helpful Derelict 2127 | -10/Mines | Assisted by bots powering up and referring to "LRC-V3" 2266 | -10/Mines | Discovered exit to Subcaves (range 10) 2366 | -10/Mines | A weapon hastily lodged in a ceiling crevice suddenly fell to the ground 2425 | -10/Mines | Learned Materials trap positions 2851 | -10/Mines | Entered Materials 2851 | -9/Materials | Accompanied by 3 allies 2851 | -9/Materials | Evolved 2 slots: Weapon x2 2852 | -9/Materials | Loaded intel: 20 trap records 3342 | -9/Materials | Identified exit to Mines 3350 | -9/Materials | Build established: Scavenger-Gunner 3888 | -9/Materials | Discovered new exit (range 14) 4113 | -9/Materials | Build established: Tank 4222 | -9/Materials | Discovered new exit (range 16) 4481 | -9/Materials | Discovered new exit (range 8) 4671 | -9/Materials | Build established: Scavenger-Gunner 5054 | -9/Materials | Learned location of Zion (-6) 5198 | -9/Materials | Learned Storage non-interactive machine intel 5257 | -9/Materials | Learned location of 2 exits from Materials 5304 | -9/Materials | Learned Materials trap positions 5342 | -9/Materials | Learned location of 1 exit from Recycling 5353 | -9/Materials | Build established: Gunner 5447 | -9/Materials | Learned 4 Recycling zone layouts 5833 | -9/Materials | Entered Mines 6285 | -9/Mines | Deemed a non-threat by the Exiles lab entrance 6285 | -9/Mines | Discovered new exit (range 5) 6487 | -9/Mines | Discovered new exit (range 10) 6519 | -9/Mines | Discovered new exit (range 10) 6533 | -9/Mines | Excavation squad dispatched 6533 | -9/Mines | A large section of the Mines collapsed 6932 | -9/Mines | Entered Exiles 6972 | -9/Exiles | Met 8R-AWN 6998 | -9/Exiles | Met EX-HEX 7043 | -9/Exiles | Met EX-BIN 7075 | -9/Exiles | Aligned with FarCom system 7076 | -9/Exiles | Given EX-Vault access code 7118 | -9/Exiles | Opened EX-Vault 7130 | -9/Exiles | Found Potential Leg 7134 | -9/Exiles | Found Potential Leg 7139 | -9/Exiles | Found Trap Reconfigurator 7165 | -9/Exiles | Warned to stay clear of 0b10 Research branches 7216 | -9/Exiles | Met EX-DEC 7337 | -9/Exiles | Discovered new exit (range 11) 7348 | -9/Exiles | Left Exiles lab with Potential Leg 7348 | -9/Exiles | Entered Mines 7358 | -8/Mines | Discovered new exit (range 14) 7425 | -8/Mines | Entered Materials 7425 | -8/Materials | Evolved 2 slots: Utility x2 7426 | -8/Materials | Identified exit to Factory 7427 | -8/Materials | Loaded intel: 9 trap records 7647 | -8/Materials | Build established: Skirmisher 7654 | -8/Materials | Garrison activated, responded to threat 8187 | -8/Materials | Identified exit to Garrison 8559 | -8/Materials | Learned location of 2 exits from Lower Caves 8610 | -8/Materials | Learned 8 Factory zone layouts 8653 | -8/Materials | Learned Factory emergency access door positions 8706 | -8/Materials | Learned Storage stockpile data 8717 | -8/Materials | Learned location of 2 exits from Lower Caves 8739 | -8/Materials | Learned location of 3 exits from Factory 8770 | -8/Materials | Learned 4 Recycling zone layouts 8862 | -8/Materials | Entered Garrison 8894 | -8/Garrison | Triggered checkpoint 8918 | -8/Garrison | Garrison Relay disabled 9012 | -8/Garrison | Triggered checkpoint 9030 | -8/Garrison | Triggered checkpoint 9125 | -8/Garrison | Triggered checkpoint 9173 | -8/Garrison | Garrison Relay disabled 9186 | -8/Garrison | Triggered checkpoint 9190 | -8/Garrison | Garrison Relay disabled 9336 | -8/Garrison | Discovered new exit (range 10) 9362 | -8/Garrison | Discovered new exit (range 12) 9362 | -8/Garrison | Discovered new exit (range 43) 9362 | -8/Garrison | Discovered new exit (range 85) 9737 | -8/Garrison | Destroyed 9 combat bots 9781 | -8/Garrison | Build established: Gunner 9860 | -8/Garrison | Triggered checkpoint 9891 | -8/Garrison | Garrison Relay disabled 9907 | -8/Garrison | Garrison Relay disabled 10028 | -8/Garrison | Triggered checkpoint 10093 | -8/Garrison | Entered Materials 10222 | -8/Materials | Identified exit to Garrison 10893 | -8/Materials | First assault squad dispatched 11104 | -8/Materials | Entered Garrison 11122 | -8/Garrison | Triggered checkpoint 11178 | -8/Garrison | Discovered new exit (range 6) 11186 | -8/Garrison | Spotted B-75 Beast 11219 | -8/Garrison | Destroyed B-75 Beast 11339 | -8/Garrison | Discovered exit to Factory (range 64) 11339 | -8/Garrison | Discovered exit to Factory (range 46) 11339 | -8/Garrison | Discovered exit to Factory (range 37) 11339 | -8/Garrison | Discovered new exit (range 27) 11344 | -8/Garrison | Spotted B-75 Beast 11370 | -8/Garrison | Destroyed B-75 Beast 11470 | -8/Garrison | Triggered checkpoint 11506 | -8/Garrison | Triggered checkpoint 11592 | -8/Garrison | Triggered checkpoint 11595 | -8/Garrison | Core integrity fell below 50% 11749 | -8/Garrison | Triggered checkpoint 11767 | -8/Garrison | Garrison Relay disabled 11858 | -8/Garrison | Triggered checkpoint 11870 | -8/Garrison | Garrison Relay disabled 12098 | -8/Garrison | Garrison Relay disabled 12165 | -8/Garrison | Garrison Relay disabled 12288 | -8/Garrison | Triggered checkpoint 12340 | -8/Garrison | Triggered checkpoint 12402 | -8/Garrison | Phase Generator disabled 12408 | -8/Garrison | Entered Factory 12408 | -7/Factory | Evolved 2 slots: Propulsion x1, Utility x1 12409 | -7/Factory | Identified exit to Lower Caves 12410 | -7/Factory | Identified exit to Factory 12411 | -7/Factory | Identified exit to Storage 14090 | -7/Factory | Central database locked down 14745 | -7/Factory | Fabricated M-13 Machinist? 14891 | -7/Factory | Discovered exit to Factory (range 14) 14964 | -7/Factory | Entered Storage 14965 | -7/Storage | Identified exit to Recycling 14967 | -7/Storage | Loaded intel: 21 non-interactive machine locations 14968 | -7/Storage | Loaded intel: 1 garrison access location 15065 | -7/Storage | Garrison activated, responded to threat 15605 | -7/Storage | Found Prototype Launcher 15605 | -7/Storage | Identified Rocket Array 15670 | -7/Storage | Discovered exit to Factory (range 5) 15865 | -7/Storage | System corruption reached 10% 15975 | -7/Storage | Met a pair of Derelict thieves 16035 | -7/Storage | Assisted by bots powering up and referring to "LRC-V3" 16118 | -7/Storage | Lost 12 allies 16725 | -7/Storage | Identified exit to Garrison 16725 | -7/Storage | Entered Garrison 16870 | -7/Garrison | Triggered checkpoint 17086 | -7/Garrison | Garrison Relay disabled 17319 | -7/Garrison | Triggered checkpoint 17470 | -7/Garrison | Discovered exit to Recycling (range 7) 17543 | -7/Garrison | Triggered checkpoint 17640 | -7/Garrison | Garrison Relay disabled 17727 | -7/Garrison | Triggered checkpoint 18086 | -7/Garrison | Entered Recycling 18087 | -7/Recycling | Joined Warlord attack on 0b10 via Recycling 18087 | -7/Recycling | Identified exit to Scraptown 18087 | -7/Recycling | Identified exit to Factory 18553 | -7/Recycling | Build established: Commander-Gunner 19141 | -7/Recycling | Entered Factory 19141 | -5/Factory | Accompanied by 7 allies 19141 | -5/Factory | Evolved 4 slots: Power x1, Propulsion x3 19394 | -5/Factory | Lost 3 allies 19510 | -5/Factory | Build established: Commander-Sprinter 19542 | -5/Factory | Lost 4 allies 19627 | -5/Factory | Identified exit to Upper Caves 19632 | -5/Factory | Central database locked down 19650 | -5/Factory | Garrison activated, responded to threat 19662 | -5/Factory | Discovered new exit (range 16) 19844 | -5/Factory | Build established: Sprinter 20179 | -5/Factory | Discovered new exit (range 15) 20228 | -5/Factory | Entered Upper Caves 20240 | -5/Upper Caves | Met a Warlord Commander 20241 | -5/Upper Caves | Learned location of Warlord (-5) 20242 | -5/Upper Caves | Warlord Commander delivered Encrypted Comm Array 20255 | -5/Upper Caves | A Derelict revealed a hidden shortcut to "reach the base" 20274 | -5/Upper Caves | Entered Warlord 20279 | -5/Warlord | Discovered new exit (range 14) 20602 | -5/Warlord | Met Warlord 20618 | -5/Warlord | Visited the Vortex Lab 20627 | -5/Warlord | Warlord's base attacked by MAIN.C 20666 | -5/Warlord | Found Prototype Special Weapon 20666 | -5/Warlord | Identified RU-N14's Throwing Claymores v3 20690 | -5/Warlord | Found Prototype Energy Gun 20690 | -5/Warlord | Identified Vortex Rifle 20692 | -5/Warlord | Found Prototype Piercing Weapon 20692 | -5/Warlord | Identified Vortex Lance 20694 | -5/Warlord | Found Prototype Energy Cannon 20694 | -5/Warlord | Identified Vortex Driver 20697 | -5/Warlord | Found Vortex Rifle 20740 | -5/Warlord | Found Vortex Lance 20866 | -5/Warlord | Warlord forces counterattacked 20883 | -5/Warlord | Lost 3 allies 20935 | -5/Warlord | Opened side exit 20944 | -5/Warlord | Entered Proximity Caves 20953 | -4/Proximity Caves | Lost 3 allies 21000 | -4/Proximity Caves | Spotted B-86 Titan 21011 | -4/Proximity Caves | Learned location of Quarantine (-3) 21217 | -4/Proximity Caves | Learned location of 1 exit from Research 21326 | -4/Proximity Caves | Discovered new exit (range 4) 21327 | -4/Proximity Caves | Entered Factory 21327 | -4/Factory | Evolved 2 slots: Propulsion x1, Utility x1 21359 | -4/Factory | Identified exit to Upper Caves 21359 | -4/Factory | Identified exit to Extension 21587 | -4/Factory | Fabricated Imp. VTOL Module (x1) 22112 | -4/Factory | P-70 Sage assimilated allied Administrator 7b 22201 | -4/Factory | Entered Extension 22607 | -4/Extension | Rescued a captive Derelict 22609 | -4/Extension | Rescued a captive Derelict 22751 | -4/Extension | Disrupted transfer network 22882 | -4/Extension | Spotted B-86 Titan 22896 | -4/Extension | Lost 5 allies 22927 | -4/Extension | Destroyed B-86 Titan 22945 | -4/Extension | Discovered new exit (range 4) 23014 | -4/Extension | Rescued a captive Derelict 23014 | -4/Extension | Rescued a captive Derelict 23391 | -4/Extension | Rescued a captive Derelict 23467 | -4/Extension | Rescued A7 23473 | -4/Extension | Rescued a captive Derelict 23672 | -4/Extension | Discovered new exit (range 22) 23672 | -4/Extension | Discovered new exit (range 22) 23706 | -4/Extension | Rescued a captive Derelict 23718 | -4/Extension | Build established: Commander-Sprinter 24167 | -4/Extension | Entered Cetus 24167 | -4/Cetus | Accompanied by 8 allies (A7) 24171 | -4/Cetus | Spotted Cetus Guard 24171 | -4/Cetus | Spotted Cetus Guard 24171 | -4/Cetus | Spotted Cetus Guard 24171 | -4/Cetus | Spotted Cetus Guard 24172 | -4/Cetus | Acquired a Cetus Manufacturing Module code from A7 24180 | -4/Cetus | Allies destroyed Cetus Guard 24193 | -4/Cetus | Allies destroyed Cetus Guard 24193 | -4/Cetus | Allies destroyed Cetus Guard 24199 | -4/Cetus | Destroyed Cetus Guard 24208 | -4/Cetus | Discovered new exit (range 21) 24218 | -4/Cetus | Build established: Scavenger-Sprinter 24221 | -4/Cetus | Started Cetus Manufacturing Module 24246 | -4/Cetus | Manufactured an Enhanced Grunt 24271 | -4/Cetus | Manufactured an Enhanced Grunt 24296 | -4/Cetus | Manufactured an Enhanced Grunt 24321 | -4/Cetus | Manufactured an Enhanced Grunt 24346 | -4/Cetus | Manufactured an Enhanced Grunt 24348 | -4/Cetus | Escorted A7 to Cetus Mainframe 24373 | -4/Cetus | Discovered new exit (range 22) 24403 | -4/Cetus | Spotted Cetus Guard 24404 | -4/Cetus | Spotted Cetus Guard 24404 | -4/Cetus | Spotted Cetus Guard 24408 | -4/Cetus | Spotted Cetus Guard 24420 | -4/Cetus | Allies destroyed Cetus Guard 24424 | -4/Cetus | Allies destroyed Cetus Guard 24424 | -4/Cetus | Allies destroyed Cetus Guard 24433 | -4/Cetus | Allies destroyed Cetus Guard 24437 | -4/Cetus | Discovered new exit (range 21) 24446 | -4/Cetus | Met Revision 17 24600 | -4/Cetus | Entered Archives 24600 | -4/Archives | Accompanied by 11 allies (A7) 24605 | -4/Archives | Received a hacking code to weaken MAIN.C 24631 | -4/Archives | Unable to access archive contents 24632 | -4/Archives | Discovered new exit (range 22) 24634 | -4/Archives | Unable to access archive contents 24642 | -4/Archives | Discovered new exit (range 22) 24652 | -4/Archives | Discovered new exit (range 21) 24907 | -4/Archives | Entered Hub_04(d) 24907 | -4/Hub_04(d) | Accompanied by 9 allies 24924 | -4/Hub_04(d) | Garrison activated, responded to threat 24977 | -4/Hub_04(d) | Lost 3 parts (3n) 25040 | -4/Hub_04(d) | Identified exit to Garrison 25157 | -4/Hub_04(d) | First assault squad dispatched 25264 | -4/Hub_04(d) | Discovered new exit (range 15) 25270 | -4/Hub_04(d) | Self-destructed Last Messages --------------- 25266_ C-35 Carver knocked back. 25266_ C-35 Carver destroyed. 25266_ Knocked back. 25266_ U-05 Engineer lays Concrete. 25266_ Knocked back. 25267_ U-05 Engineer lays Concrete. 25267_ Autogun+ destroyed. 25267_ KE Penetrator+ destroyed. 25267_ Knocked back. 25267_ U-05 Engineer lays Concrete. 25268_ U-05 Engineer builds a Wall. 25268_ U-05 Engineer lays Concrete. 25268_ C-35 Carver destroyed. 25268_ Vortex Rifle destroyed. 25269_ Field Propulsion Array destroyed. 25269_ R-10 Processor collects Cesium-ion Thruster. 25269_ U-05 Engineer lays Concrete. 25270_ The unstable cave ceiling collapses. 25270_ Imp. Cesium-ion Thruster destroyed. 25270_ U-05 Engineer lays Concrete. Map ----- +----------------------------------------------------+ | ?????????????????????????????????????????????????? | | ?????????????????????????????????????????????????? | | ?????????????????????????????????????????????????? | | ???????????????????????????##????????????????????? | | ??????????????????????????? #????????????????????? | | ??????????????????????#???? #? ?????????????????? | | ??????????????????????# ??? #? ?????????????????? | | ??????????????????????# ?"" #? !?????????????????? | | ??????????????????????# #? ??????????????????? | | ??????????????????????# """ #!!??????????????????? | | ??????????????????????# #!!??????????????????? | | ??????????????????????# """ #!???????????????????? | | ??????????????????????# # ???????????????????? | | ??????????????????????# """ # ???? ??????????????? | | ??????????????######### ####+#??????????????? | | ??????????????# """ ???????????????? | | ??????????????# " " " ????????????????? | | ?????????#????# " " " #????????????????? | | ?????????# ???# " " " #?????? ??????? | | ????????## ??# #???? ????????? | | ????????# ##+## #??"" """????????? | | ????????# = H # ????????? | | ????????# < %[[%! #???????????????? | | ????????# ###+# #???????????????? | | ?????#####/####!%/ / ##???????????????? | | ?????# +*] = c@ ###????????????????? | | ?????# #%!]!*]u! #??????????????????? | | ?????# #u*u !% # ##??????????????????? | | ?????# #!= =] #???????????????????? | | ?????# # =k #######????????????????? | | ?????# ?# %[ dg#??] ????????????????? | | ?????# ??## x##g##? T ????????????????? | | ?????# ?????## % *%#? "" ????????????????? | | ?????# ???????# * % b #? ????????????????? | | ?????##?????????# #?# #????????????????? | | ????????????????# #?# #????????????????? | | ????????????????# !*[ #?# #????????????????? | | ????????????????# " "" !%! #?# #????????????????? | | ????????????????# " ""!%!= ## ##???????????????? | | ????????????????# """" = # #???????????????? | | ????????????????# """" = # % #???????????????? | | ????????????????# !=!! # ????????????????? | | ???????????????## % !!% # % ????????????????? | | ???????????????# !%R### #????????????????? | | ???????????????## ""T " #?# ##???????????????? | | ???????#####????# %= """""R#?# T#???????????????? | | ???????# ???# %#?# #????????????????? | | ???????#"""" ?#####+######/### #????????????????? | | ???????#"""" # #????????????????? | | ???????#"""" # #?#############??? | +----------------------------------------------------+ Best States ------------- Heat Dissipation 75 Energy Generation 30 Energy Capacity 350 Matter Stores 300 Matter Capacity 300 Sight Range 22 Terrain Scan Density 10 Additional Mass Support 12 Armor Coverage 375 Resistance: KI 30 Weapon Shielding 66 Weapon Cycling 20 Evasion (%) 76 Targeting Accuracy 11 Core Analysis 6 Recoil Reduction 3 Particle Charging 15 Offensive Hacking 14 Defensive Hacking 14 Authchip Count 1 Item Schematics ----------------- Imp. Flight Unit | -9/Materials | Scanalyzed Imp. Targeting Computer | -9/Materials | Scanalyzed Imp. VTOL Module | -7/Factory | Scanalyzed Hacking Suite | -5/Factory | Scanalyzed Adv. Hacking Suite | -5/Factory | Scanalyzed Robot Schematics ------------------ M-13 Machinist | -10/Materials | Hacked Fabricated ------------ M-13 Machinist | x1 | -7/Factory Imp. VTOL Module | x1 | -4/Factory | Authchip Repaired ---------- Seismic Detector | 10% | -10/Materials Studied --------- Autogun | -9/Materials | Hacked Minigun | -8/Materials | Hacked Imp. Grenade Launcher | -8/Materials | Hacked Hvy. Machine Gun | -7/Factory | Hacked KE Penetrator | -5/Factory | Hacked Mic. Fission Core | -4/Factory | Hacked Alien Tech Used ----------------- None Achievements -------------- Ew, Corruption Fancy Inventory Main Advantage Sprinter Challenges ------------ None Game ------ Seed ImpulseRecoilStorm Manual? 0 Play Time 07:42:58 Cumulative 230.7 hours Start 2025.11.30 @ 18:29:20 End 2025.12.14 @ 21:02:13 Sessions 27 Manual Loads 0 Difficulty Rogue Special Mode None Game No. 75 Rogue 75 Adventurer 0 Explorer 0 Win Type - Total 1 Types 1/0/0/0/0/0/0/0/0/0 Lore% 53 Gallery% 51 Achievement% 41 Wizard Run 0 Options --------- Layout 0 ASCII 1 Keyboard 1 Movement Arrows Keybinds 0 Fullscreen 1 Font 28/Smallcaps Map View 72x54 Zoom Use 0% Tactical HUD 1 Map Filters NONE Filters NONE Steam 1 RUN: c1e0e8a7-3eea-438c-add0-2629273feda5